bitfinex-derivatives/quotes_BTCF0:USTF0_20251030
["timestamp","ask_amount","ask_price","bid_price","bid_amount"]
[1761853693438,0.01475014,106660.0,106650.0,0.68858617]
[1761853693731,0.01375014,106660.0,106650.0,0.68758617]
[1761853693930,0.022,106660.0,106650.0,0.44106]
[1761853694333,0.022,106660.0,106650.0,0.08026]
[1761853694631,0.63341038,106680.0,106660.0,0.10136]
[1761853694935,0.69911282,106680.0,106660.0,0.43328]
[1761853695139,0.3608,106670.0,106660.0,0.43328]
[1761853695340,0.31322861,106670.0,106660.0,0.43328]
[1761853695840,1.56663899,106670.0,106650.0,0.003]
[1761853696032,0.3608,106660.0,106650.0,0.003]
[1761853696231,0.67402861,106660.0,106650.0,0.04093]
[1761853696428,0.32685549,106660.0,106650.0,0.32600617]
[1761853696632,0.03685549,106660.0,106650.0,0.68680617]
[1761853696842,0.01362688,106660.0,106650.0,0.68480617]
[1761853697046,0.3608,106670.0,106660.0,0.09699]
[1761853697241,0.70402265,106670.0,106660.0,0.09699]
[1761853698043,0.71736153,106670.0,106660.0,0.09699]
[1761853698244,0.14756153,106670.0,106660.0,0.42887]
[1761853698438,0.14956153,106670.0,106660.0,0.42987]
[1761853698641,0.51036153,106670.0,106660.0,0.42987]
[1761853698837,0.73036153,106670.0,106660.0,0.42987]
[1761853699438,0.36956153,106670.0,106660.0,0.42987]
[1761853699641,0.73036153,106670.0,106660.0,0.42987]
[1761853699941,0.44301422,106670.0,106660.0,0.42987]
[1761853700141,0.80381422,106670.0,106660.0,0.42987]
[1761853700343,0.36956153,106670.0,106660.0,0.42987]
[1761853700545,0.03956153,106670.0,106660.0,0.42987]
[1761853700744,0.05956153,106670.0,106660.0,0.42987]
[1761853700946,0.70036153,106670.0,106660.0,0.42987]
[1761853701351,0.70036153,106670.0,106660.0,0.42983]
[1761853701542,0.33956153,106670.0,106660.0,0.42983]
[1761853701847,0.70036153,106670.0,106660.0,0.42983]
[1761853702643,0.33956153,106670.0,106660.0,0.42983]
[1761853702842,0.70036153,106670.0,106660.0,0.09799]
[1761853703043,0.33956153,106670.0,106660.0,0.09799]
[1761853703642,0.70036153,106670.0,106660.0,0.09799]
[1761853703942,0.77718912,106670.0,106660.0,0.09799]
[1761853704144,0.41638912,106670.0,106660.0,0.09799]
[1761853704338,0.23956153,106670.0,106660.0,0.09799]
[1761853704539,0.23956153,106670.0,106660.0,0.34551617]
[1761853704849,0.60036153,106670.0,106660.0,0.09799]
[1761853705043,0.23956153,106670.0,106660.0,0.09799]
[1761853705348,0.60036153,106670.0,106660.0,0.09799]
[1761853705845,0.60036153,106670.0,106660.0,0.02151]
[1761853706050,0.60136153,106670.0,106660.0,0.09595]
[1761853706252,0.60136153,106670.0,106660.0,0.02551]
[1761853706647,0.60036153,106670.0,106660.0,0.09195]
[1761853706847,0.25390237,106670.0,106660.0,0.09495]
[1761853707153,0.25390237,106670.0,106660.0,0.70327617]
[1761853707349,0.25390237,106670.0,106660.0,0.09195]
[1761853707551,0.25490237,106670.0,106660.0,0.09295]
[1761853707746,0.25490237,106670.0,106660.0,0.45375]
[1761853708055,0.32941,106670.0,106660.0,0.45475]
[1761853708246,0.32941,106670.0,106660.0,0.09395]
[1761853708554,0.32941,106670.0,106660.0,0.45475]
[1761853709255,0.32941,106670.0,106660.0,0.45575]
[1761853709860,0.69021,106670.0,106660.0,0.09495]
[1761853710347,0.96282038,106670.0,106660.0,0.003]
[1761853710547,0.72365562,106670.0,106660.0,0.02568]
[1761853710944,0.72365562,106670.0,106660.0,0.06049]
[1761853711455,0.82360502,106670.0,106660.0,0.06049]
[1761853711650,0.82360502,106670.0,106660.0,0.02568]
[1761853712550,0.87308222,106670.0,106660.0,0.02568]
[1761853713255,0.82360502,106670.0,106660.0,0.02568]
[1761853713444,0.82360502,106670.0,106660.0,0.09612]
[1761853713650,0.72365562,106670.0,106660.0,0.09612]
[1761853714048,0.72365562,106670.0,106660.0,0.06049]
[1761853714251,0.95449814,106670.0,106660.0,0.09612]
[1761853714457,0.71529814,106670.0,106660.0,0.09612]
[1761853714661,0.35449814,106670.0,106660.0,0.09612]
[1761853716757,0.25449814,106670.0,106660.0,0.09612]
[1761853716950,0.41984847,106670.0,106660.0,0.42792]
[1761853717150,0.78064847,106670.0,106660.0,0.42792]
[1761853717358,0.41984847,106670.0,106660.0,0.42792]
[1761853717554,0.88059787,106670.0,106660.0,0.42792]
[1761853717950,0.41984847,106670.0,106660.0,0.42792]
[1761853718550,0.41984847,106670.0,106660.0,0.67544617]
[1761853718860,0.001,106670.0,106660.0,1.13002567]
[1761853719253,0.001,106670.0,106660.0,1.19896866]
[1761853719554,0.4599049,106700.0,106690.0,0.07044]
[1761853719754,0.73793938,106700.0,106690.0,0.07044]
[1761853720159,0.45793938,106700.0,106690.0,0.07044]
[1761853720360,0.78793938,106700.0,106690.0,0.07044]
[1761853720745,0.79093938,106700.0,106690.0,0.07044]
[1761853720946,0.89088878,106700.0,106690.0,0.07044]
[1761853721755,0.89588878,106700.0,106690.0,0.07144]
[1761853722347,1.50588878,106700.0,106690.0,0.001]
[1761853722552,1.49288878,106700.0,106690.0,0.001]
[1761853722860,1.39393938,106700.0,106690.0,0.001]
[1761853723158,1.38993938,106700.0,106690.0,0.001]
[1761853723548,1.40352171,106700.0,106690.0,0.001]
[1761853723752,1.40632171,106700.0,106690.0,0.001]
[1761853723954,1.05384788,106700.0,106690.0,0.001]
[1761853724158,1.08893602,106700.0,106690.0,0.001]
[1761853724354,1.18888542,106700.0,106690.0,0.001]
[1761853724657,0.0028,106690.0,106640.0,0.69756916]
[1761853724861,0.3608,106670.0,106660.0,0.02268]
[1761853725162,0.66392262,106670.0,106660.0,0.09312]
[1761853725855,0.76387202,106670.0,106660.0,0.09312]
[1761853726462,0.76387202,106670.0,106660.0,0.09612]
[1761853726662,0.66392262,106670.0,106660.0,0.09612]
[1761853726958,0.66492262,106670.0,106660.0,0.09412]
[1761853727264,0.66592262,106670.0,106660.0,0.09412]
[1761853729163,0.30512262,106670.0,106660.0,0.09412]
[1761853731766,0.002,106670.0,106660.0,0.81783877]
[1761853731970,0.052,106670.0,106660.0,0.81783877]
[1761853733360,0.052,106670.0,106660.0,0.45492]
[1761853733670,0.312,106670.0,106660.0,0.45492]
[1761853734355,0.312,106670.0,106660.0,0.91161857]
[1761853734559,0.312,106670.0,106660.0,1.51161857]
[1761853734560,0.002,106670.0,106660.0,1.51161857]
[1761853734759,0.001,106670.0,106660.0,1.51441857]
[1761853734955,0.001,106670.0,106660.0,1.41783877]
[1761853735254,0.021,106670.0,106660.0,0.45492]
[1761853735459,0.041,106670.0,106660.0,0.78656]
[1761853736161,0.041,106670.0,106660.0,1.14947877]
[1761853736566,0.47347323,106700.0,106680.0,0.09292]
[1761853736862,0.77655442,106700.0,106680.0,0.09292]
[1761853737063,1.14947319,106700.0,106670.0,0.43336]
[1761853737670,1.18290538,106700.0,106670.0,0.43336]
[1761853738070,0.0999494,106680.0,106670.0,0.43336]
[1761853738267,0.30308119,106680.0,106670.0,0.43336]
[1761853738669,0.30308119,106680.0,106670.0,0.43436]
[1761853738973,0.30308119,106680.0,106670.0,0.43536]
[1761853739172,0.30408119,106680.0,106670.0,0.43436]
[1761853739356,0.30408119,106680.0,106670.0,0.07356]
[1761853739668,0.66588119,106680.0,106670.0,0.07356]
[1761853739866,0.30508119,106680.0,106670.0,0.07356]
[1761853740268,0.76583059,106680.0,106670.0,0.001]
[1761853741962,0.66588119,106680.0,106670.0,0.07356]
[1761853742864,0.30508119,106680.0,106670.0,0.07356]
[1761853743066,0.40503059,106680.0,106670.0,0.07356]
[1761853743274,0.76583059,106680.0,106670.0,0.07356]
[1761853743767,0.76583059,106680.0,106670.0,0.03639]
[1761853743969,0.76583059,106680.0,106670.0,0.001]
[1761853743970,0.77583059,106680.0,106670.0,0.001]
[1761853744177,0.76583059,106680.0,106670.0,0.001]
[1761853745366,1.36583059,106680.0,106670.0,0.001]
[1761853745564,1.37583059,106680.0,106670.0,0.001]
[1761853746363,0.77583059,106680.0,106670.0,0.001]
[1761853747570,0.66588119,106680.0,106670.0,0.001]
[1761853748082,0.67588119,106680.0,106670.0,0.001]
[1761853748776,0.77583059,106680.0,106670.0,0.001]
[1761853751380,1.39090473,106680.0,106670.0,0.0945]
[1761853752083,1.36583059,106680.0,106670.0,0.0945]
[1761853752277,1.39090473,106680.0,106670.0,0.0945]
[1761853753973,1.29090473,106680.0,106670.0,0.0945]
[1761853754883,0.56588119,106680.0,106670.0,0.0945]
[1761853755576,0.022,106680.0,106670.0,0.6945]
[1761853755780,0.022,106680.0,106670.0,1.0553]
[1761853755986,0.282,106680.0,106670.0,1.05741877]
[1761853756183,0.002,106680.0,106670.0,0.6945]
[1761853756391,0.042,106680.0,106670.0,1.0553]
[1761853756684,0.042,106680.0,106670.0,0.6945]
[1761853756883,0.042,106680.0,106670.0,1.0553]
[1761853757094,0.332,106680.0,106670.0,0.6945]
[1761853757384,0.332,106680.0,106670.0,0.0945]
[1761853757583,0.7927494,106680.0,106670.0,0.0945]
[1761853757981,0.332,106680.0,106670.0,0.0945]
[1761853758483,0.332,106680.0,106670.0,0.4553]
[1761853758984,0.332,106680.0,106670.0,0.82101877]
[1761853759179,0.002,106680.0,106670.0,0.82101877]
[1761853759380,0.022,106680.0,106670.0,0.81821877]
[1761853759581,0.002,106680.0,106670.0,0.81821877]
[1761853759884,0.022,106680.0,106670.0,0.81821877]
[1761853760086,0.002,106680.0,106670.0,0.81821877]
[1761853760277,0.022,106680.0,106670.0,0.81821877]
[1761853760480,0.002,106680.0,106670.0,0.81821877]
[1761853760979,0.022,106680.0,106670.0,0.81821877]
[1761853761184,0.022,106680.0,106670.0,0.4553]
[1761853761387,0.39547323,106700.0,106670.0,0.7867]
[1761853761579,0.71547323,106700.0,106680.0,0.43157]
[1761853761780,0.78905508,106700.0,106680.0,0.43157]
[1761853761981,0.3608,106690.0,106680.0,0.07077]
[1761853762183,0.34,106690.0,106680.0,0.07077]
[1761853762478,0.4399494,106690.0,106680.0,0.07077]
[1761853762687,0.8007494,106690.0,106680.0,0.07077]
[1761853762988,0.4399494,106690.0,106680.0,0.07077]
[1761853763487,0.8007494,106690.0,106680.0,0.07077]
[1761853763883,0.8017494,106690.0,106680.0,0.07077]
[1761853764478,0.8047494,106690.0,106680.0,0.07177]
[1761853764788,0.8147494,106690.0,106680.0,0.07177]
[1761853765090,0.83982354,106690.0,106680.0,0.07177]
[1761853765587,0.36907414,106690.0,106680.0,0.07177]
[1761853765788,0.344,106690.0,106680.0,0.07177]
[1761853765990,0.36702476,106690.0,106680.0,0.07177]
[1761853766283,0.7528989,106690.0,106680.0,0.07177]
[1761853766485,0.04702476,106690.0,106680.0,0.79548877]
[1761853766782,0.31702476,106690.0,106680.0,0.07177]
[1761853766988,0.31702476,106690.0,106680.0,0.43257]
[1761853767190,0.31702476,106690.0,106680.0,0.07177]
[1761853767695,0.67782476,106690.0,106680.0,0.07177]
[1761853768093,0.31702476,106690.0,106680.0,0.07177]
[1761853768596,0.41697416,106690.0,106680.0,0.07177]
[1761853769486,0.31702476,106690.0,106680.0,0.07177]
[1761853771299,0.31702476,106690.0,106680.0,0.43257]
[1761853771599,0.294,106690.0,106680.0,0.79548877]
[1761853772187,0.294,106690.0,106680.0,0.43257]
[1761853772602,0.004,106690.0,106680.0,0.89205127]
[1761853773106,0.004,106690.0,106680.0,1.22329127]
[1761853773396,0.004,106690.0,106680.0,1.82329127]
[1761853773696,0.3479448,106720.0,106710.0,0.03647]
[1761853773900,0.81089804,106720.0,106710.0,0.07028]
[1761853774399,0.53649895,106720.0,106710.0,0.07028]
[1761853774599,0.5504447,106720.0,106710.0,0.07028]
[1761853775094,0.4504953,106720.0,106710.0,0.07028]
[1761853775900,0.4614953,106720.0,106710.0,0.07128]
[1761853776096,0.4614953,106720.0,106710.0,0.43208]
[1761853776302,0.38794959,106720.0,106710.0,0.43208]
[1761853776595,0.36494575,106720.0,106710.0,0.07128]
[1761853776997,0.35894575,106720.0,106710.0,0.07128]
[1761853777196,0.35494575,106720.0,106710.0,0.43208]
[1761853777590,0.35494575,106720.0,106710.0,0.07128]
[1761853777791,0.35494575,106720.0,106710.0,0.03747]
[1761853777792,0.73873371,106720.0,106710.0,0.03747]
[1761853777992,0.73873371,106720.0,106710.0,0.07128]
[1761853778598,0.83868311,106720.0,106710.0,0.07128]
[1761853778998,0.83868311,106720.0,106710.0,0.001]
[1761853779202,0.91403546,106720.0,106710.0,0.03747]
[1761853779393,0.91403546,106720.0,106710.0,0.07128]
[1761853779595,0.92403546,106720.0,106710.0,0.07128]
[1761853780104,0.92683546,106720.0,106710.0,0.001]
[1761853780294,0.92683546,106720.0,106710.0,0.03747]
[1761853780496,0.91403546,106720.0,106710.0,0.07128]
[1761853780698,0.92403546,106720.0,106710.0,0.07128]
[1761853780906,0.91403546,106720.0,106710.0,0.07128]
[1761853781107,0.81403546,106720.0,106710.0,0.07128]
[1761853781401,0.71408606,106720.0,106710.0,0.07128]
[1761853781807,0.72408606,106720.0,106710.0,0.07128]
[1761853781993,0.72408606,106720.0,106710.0,0.03747]
[1761853782194,0.82403546,106720.0,106710.0,0.001]
[1761853782601,0.83403546,106720.0,106710.0,0.001]
[1761853782801,1.39403546,106720.0,106710.0,0.001]
[1761853783200,1.78202837,106720.0,106710.0,0.001]
[1761853783400,1.3191602,106720.0,106710.0,0.001]
[1761853784404,1.7501496,106720.0,106710.0,0.001]
[1761853784707,2.11586837,106720.0,106710.0,0.001]
[1761853784898,2.11306837,106720.0,106710.0,0.001]
[1761853785097,2.11586837,106720.0,106690.0,0.3608]
[1761853785295,0.3608,106700.0,106680.0,0.07028]
[1761853785500,0.3608,106690.0,106680.0,0.07028]
[1761853785700,0.72378796,106690.0,106680.0,0.03647]
[1761853786002,0.72378796,106690.0,106680.0,0.07028]
[1761853786402,0.82373736,106690.0,106680.0,0.07428]
[1761853786615,0.82373736,106690.0,106680.0,0.004]
[1761853786797,0.82373736,106690.0,106670.0,0.09122]
[1761853786997,0.82373736,106690.0,106680.0,0.004]
[1761853787209,0.82373736,106690.0,106680.0,0.04047]
[1761853787808,0.82373736,106690.0,106680.0,0.07428]
[1761853788203,0.82373736,106690.0,106680.0,0.07028]
[1761853788409,0.82373736,106690.0,106680.0,0.09048]
[1761853788705,0.82473736,106690.0,106680.0,0.09648]
[1761853788904,0.82573736,106690.0,106680.0,0.09648]
[1761853789503,0.82773736,106690.0,106680.0,0.09148]
[1761853790702,0.72778796,106690.0,106680.0,0.09148]
[1761853790902,0.36698796,106690.0,106680.0,0.45228]
[1761853791196,0.36698796,106690.0,106680.0,0.09148]
[1761853791796,0.344,106690.0,106680.0,0.69969908]
[1761853793512,0.244,106690.0,106680.0,0.45228]
[1761853797013,0.244,106690.0,106680.0,0.69969908]
[1761853797418,0.004,106690.0,106680.0,0.84795322]
[1761853797811,0.294,106690.0,106680.0,0.84795322]
[1761853798007,0.294,106690.0,106680.0,1.44795322]
[1761853798419,0.293,106690.0,106680.0,1.44795322]
[1761853798611,0.293,106690.0,106680.0,1.44995322]
[1761853798817,0.291,106690.0,106680.0,1.45395322]
[1761853800113,0.001,106690.0,106680.0,1.45395322]
[1761853800317,0.11437224,106720.0,106710.0,0.09395]
[1761853800520,0.03686036,106720.0,106710.0,0.45475]
[1761853800713,0.01394575,106720.0,106710.0,0.81835]
[1761853800908,0.07340453,106740.0,106730.0,0.09395]
[1761853801225,0.30292639,106740.0,106730.0,0.09395]
[1761853801418,0.30292639,106740.0,106730.0,0.34105152]
[1761853801619,0.30292639,106740.0,106730.0,0.70185152]
[1761853801818,0.02292639,106740.0,106730.0,0.70185152]
[1761853802124,0.0147169,106750.0,106740.0,0.07199]
[1761853802308,0.35375512,106760.0,106750.0,0.07199]
[1761853802512,0.38587414,106780.0,106750.0,0.67989152]
[1761853802717,0.04291884,106780.0,106770.0,0.07199]
[1761853802920,0.07291884,106780.0,106770.0,0.67989152]
[1761853803118,0.89035387,106800.0,106790.0,0.07199]
[1761853803316,0.89035387,106800.0,106790.0,0.67989152]
[1761853803317,0.04288233,106800.0,106790.0,0.67989152]
[1761853803509,0.02288233,106800.0,106790.0,0.67989152]
[1761853803709,0.15,106800.0,106790.0,0.43279]
[1761853803910,0.17288765,106800.0,106790.0,0.43279]
[1761853804427,0.01445735,106800.0,106790.0,0.07199]
[1761853804608,0.33,106800.0,106790.0,0.07199]
[1761853805116,0.3608,106810.0,106800.0,0.09395]
[1761853805324,0.3608,106820.0,106810.0,0.07199]
[1761853805515,0.37544123,106820.0,106810.0,0.31909152]
[1761853805721,0.78539063,106820.0,106810.0,0.07199]
[1761853805907,0.78539063,106820.0,106800.0,0.09395]
[1761853806321,0.78939063,106820.0,106800.0,0.09395]
[1761853806526,0.82017531,106820.0,106810.0,0.001]
[1761853806718,0.72022591,106820.0,106810.0,0.07299]
[1761853806918,0.98012743,106820.0,106810.0,0.001]
[1761853807213,0.68944123,106820.0,106800.0,0.09395]
[1761853807414,0.69644123,106820.0,106800.0,0.09495]
[1761853807615,0.3608,106810.0,106800.0,0.09495]
[1761853807919,0.3,106810.0,106800.0,0.09495]
[1761853808120,0.6608,106810.0,106800.0,0.09495]
[1761853808317,0.8107494,106810.0,106800.0,0.09495]
[1761853808517,1.06785092,106810.0,106780.0,0.02196]
[1761853808718,0.3608,106800.0,106790.0,0.07199]
[1761853809026,1.44124289,106800.0,106760.0,0.0904452]
[1761853809314,0.36394,106770.0,106760.0,0.06323246]
[1761853809518,0.70237,106770.0,106750.0,0.3608]
[1761853809724,0.06458,106760.0,106750.0,0.43279]
[1761853809918,0.36229,106760.0,106750.0,0.43279]
[1761853810123,0.39458,106760.0,106750.0,0.43279]
[1761853810625,0.39458,106760.0,106750.0,0.67989152]
[1761853810818,0.75538,106760.0,106750.0,0.31909152]
[1761853811123,0.06458,106750.0,106740.0,0.45475]
[1761853811318,0.39458,106750.0,106740.0,0.45475]
[1761853811524,0.75538,106750.0,106740.0,0.09395]
[1761853812315,0.39458,106750.0,106740.0,0.09395]
[1761853812519,0.8553294,106750.0,106740.0,0.001]
[1761853812723,0.8563294,106750.0,106740.0,0.002]
[1761853813026,0.75638,106750.0,106740.0,0.002]
[1761853813521,0.75838,106750.0,106740.0,0.002]
[1761853814214,0.8583294,106750.0,106740.0,0.002]
[1761853814612,0.06458,106730.0,106720.0,0.05845]
[1761853814809,0.38458,106730.0,106720.0,0.09395]
[1761853815014,0.38458,106730.0,106720.0,0.45475]
[1761853815208,0.38458,106730.0,106720.0,0.70185152]
[1761853815416,0.38458,106730.0,106720.0,0.34105152]
[1761853816027,0.28558,106730.0,106720.0,0.70385152]
[1761853816222,0.28558,106730.0,106720.0,0.34305152]
[1761853816519,0.30037762,106730.0,106720.0,0.09595]
[1761853817524,0.30037762,106730.0,106720.0,0.34305152]
[1761853818021,0.30037762,106730.0,106720.0,0.70385152]
[1761853818414,0.38587414,106770.0,106740.0,0.03545]
[1761853818722,0.3608,106750.0,106740.0,0.09172]
[1761853818927,0.6508,106750.0,106740.0,0.09172]
[1761853819113,0.29,106750.0,106740.0,0.09172]
[1761853819515,0.29,106750.0,106740.0,0.09272]
[1761853820125,0.29,106750.0,106740.0,0.33982152]
[1761853820323,0.29,106750.0,106740.0,0.09172]
[1761853820627,0.294,106750.0,106740.0,0.70062152]
[1761853821123,0.294,106750.0,106740.0,0.33982152]
[1761853821440,1.11285092,106750.0,106720.0,0.09108]
[1761853821618,0.60790152,106740.0,106720.0,0.02196]
[1761853821932,0.73616818,106740.0,106720.0,0.09108]
[1761853822229,0.73616818,106740.0,106730.0,0.06912]
[1761853822622,0.6608,106740.0,106730.0,0.06912]
[1761853822924,0.301,106740.0,106730.0,0.31622152]
[1761853823130,0.301,106740.0,106730.0,0.67702152]
[1761853823326,0.201,106740.0,106730.0,0.67702152]
[1761853823922,0.201,106740.0,106730.0,1.00750152]
[1761853824117,0.201,106740.0,106730.0,1.00950152]
[1761853824520,0.201,106740.0,106730.0,1.00750152]
[1761853824721,0.201,106740.0,106730.0,1.01130152]
[1761853825228,0.201,106740.0,106730.0,1.01230152]
[1761853825422,0.001,106740.0,106730.0,1.01330152]
[1761853825924,0.051,106740.0,106730.0,1.01050152]
[1761853826124,0.05,106740.0,106730.0,1.00950152]
[1761853826335,0.051,106740.0,106730.0,1.01250152]
[1761853826635,0.021,106740.0,106730.0,1.01250152]
[1761853827126,0.021,106740.0,106730.0,1.01050152]
[1761853827321,0.001,106740.0,106730.0,1.01150152]
[1761853828134,0.001,106740.0,106730.0,1.01430152]
[1761853828333,0.3608,106760.0,106750.0,0.06912]
[1761853828632,0.3126398,106760.0,106750.0,0.42992]
[1761853828837,0.3126398,106760.0,106750.0,0.06912]
[1761853829138,0.6734398,106760.0,106750.0,0.06912]
[1761853829330,0.3126398,106760.0,106750.0,0.06912]
[1761853829635,0.4155892,106760.0,106750.0,0.07012]
[1761853829832,0.4165892,106760.0,106750.0,0.07012]
[1761853830527,0.4165892,106760.0,106750.0,0.43092]
[1761853830722,0.2166398,106760.0,106750.0,0.64762152]
[1761853830932,0.004,106760.0,106750.0,1.00842152]
[1761853831134,0.004,106760.0,106750.0,1.10492282]
[1761853831433,0.004,106760.0,106750.0,1.01122152]
[1761853833125,0.284,106760.0,106750.0,0.43092]
[1761853833325,0.284,106760.0,106750.0,0.76128]
[1761853834229,0.284,106760.0,106750.0,1.00838152]
[1761853835431,0.284,106760.0,106750.0,1.10488282]
[1761853835631,0.003,106760.0,106750.0,1.10488282]
[1761853836538,0.01476151,106780.0,106770.0,0.06912]
[1761853836742,0.02507414,106800.0,106790.0,0.06912]
[1761853836931,0.07,106800.0,106790.0,0.31622152]
[1761853837129,0.10766644,106800.0,106790.0,0.31622152]
[1761853837330,0.05766644,106800.0,106790.0,0.31622152]
[1761853838035,0.03766644,106800.0,106790.0,0.67702152]
[1761853838232,0.35697277,106820.0,106810.0,0.03314]
[1761853838433,0.70141645,106820.0,106810.0,0.06912]
[1761853838630,0.66798426,106820.0,106810.0,0.06912]
[1761853839445,0.76793366,106820.0,106810.0,0.06912]
[1761853839632,0.77193366,106820.0,106810.0,0.06912]
[1761853840936,0.77993366,106820.0,106810.0,0.07012]
[1761853841424,0.78993366,106820.0,106810.0,0.07012]
[1761853841925,0.12639308,106820.0,106810.0,0.07012]
[1761853842135,0.16639308,106820.0,106810.0,0.07012]
[1761853842327,0.16639308,106820.0,106810.0,0.43092]
[1761853842528,0.06644368,106820.0,106810.0,0.67802152]
[1761853844229,0.012,106820.0,106810.0,0.67802152]
[1761853844436,0.012,106820.0,106810.0,0.77167022]
[1761853844739,0.3608,106850.0,106840.0,0.08939]
[1761853845041,0.69104,106860.0,106850.0,0.06912]
[1761853845238,0.99104,106860.0,106850.0,0.06912]
[1761853845426,0.3608,106870.0,106850.0,0.42992]
[1761853845631,0.03482001,106870.0,106860.0,0.26737152]
[1761853845841,0.3608,106880.0,106870.0,0.06912]
[1761853846141,0.34,106880.0,106870.0,0.06912]
[1761853846338,0.8007494,106880.0,106870.0,0.06912]
[1761853846731,0.96065092,106880.0,106860.0,0.02027]
[1761853846936,0.3648,106870.0,106860.0,0.02027]
[1761853847131,0.6848,106870.0,106860.0,0.02027]
[1761853847641,0.6748,106870.0,106860.0,0.05341]
[1761853847839,0.68919804,106870.0,106860.0,0.08939]
[1761853848033,0.78914744,106870.0,106860.0,0.08939]
[1761853848234,0.69519804,106870.0,106860.0,0.09039]
[1761853848435,0.69119804,106870.0,106860.0,0.09039]
[1761853849033,0.69419804,106870.0,106860.0,0.09039]
[1761853849433,0.69419804,106870.0,106860.0,0.05725]
[1761853849640,0.69419804,106870.0,106860.0,0.02127]
[1761853849830,0.69419804,106870.0,106860.0,0.09039]
[1761853850230,0.45572489,106870.0,106860.0,0.09039]
[1761853850648,0.81652489,106870.0,106860.0,0.09039]
[1761853850842,0.81652489,106870.0,106860.0,0.02127]
[1761853851142,0.50652489,106870.0,106860.0,0.08935]
[1761853851345,0.009,106870.0,106860.0,0.45101681]
[1761853851841,0.009,106870.0,106860.0,0.54742181]
[1761853852147,0.37520492,106910.0,106900.0,0.09328]
[1761853852443,0.3608,106920.0,106910.0,0.07209]
[1761853852637,0.3608,106930.0,106920.0,0.09328]
[1761853852941,0.69072,106950.0,106940.0,0.09328]
[1761853853149,1.00288971,106950.0,106940.0,0.09328]
[1761853853439,0.61992,106950.0,106940.0,0.09328]
[1761853853634,0.29,106950.0,106940.0,0.09328]
[1761853853830,0.36434945,106950.0,106940.0,0.09328]
[1761853854030,0.67434945,106950.0,106940.0,0.09328]
[1761853854539,0.34430945,106950.0,106940.0,0.45408]
[1761853854733,0.01446945,106950.0,106940.0,0.81574681]
[1761853854934,0.48984,106950.0,106940.0,0.81574681]
[1761853855137,0.36967684,106950.0,106940.0,0.45408]
[1761853855348,0.04183684,106950.0,106940.0,0.45408]
[1761853855646,0.37163684,106950.0,106940.0,0.09328]
[1761853855847,0.53163684,106950.0,106940.0,0.09328]
[1761853856033,0.37163684,106950.0,106940.0,0.43884675]
[1761853856239,0.35163684,106950.0,106940.0,0.43884675]
[1761853856741,0.04183684,106950.0,106940.0,0.80051356]
[1761853856944,0.04183684,106950.0,106940.0,0.07804675]
[1761853856945,0.68295684,106950.0,106940.0,0.07804675]
[1761853857143,0.3608,106970.0,106940.0,0.44251356]
[1761853857348,0.02536,106990.0,106980.0,0.09328]
[1761853857644,0.01268,106980.0,106970.0,0.43375681]
[1761853857834,0.04014216,106990.0,106980.0,0.09328]
[1761853858036,0.3502,106990.0,106980.0,0.45408]
[1761853858237,0.01500746,107010.0,107000.0,0.09328]
[1761853858431,0.04,107010.0,107000.0,0.81574681]
[1761853858637,0.01502863,107020.0,107010.0,0.03715]
[1761853858959,0.02,107020.0,107010.0,0.43289]
[1761853859147,0.38616,107030.0,107020.0,0.09328]
[1761853859338,0.66604,107030.0,107020.0,0.09328]
[1761853859846,0.68130517,107030.0,107010.0,0.3608]
[1761853860142,0.02536,107010.0,107000.0,0.09328]
[1761853860352,0.02536,106990.0,106980.0,0.45408]
[1761853860554,1.00676,106990.0,106980.0,0.05834]
[1761853860744,0.02536,106970.0,106960.0,0.09328]
[1761853860937,0.02536,106970.0,106960.0,0.45408]
[1761853861247,0.29536,106970.0,106960.0,0.45408]
[1761853861541,0.04536,106970.0,106960.0,0.45408]
[1761853861746,0.06268,106970.0,106960.0,0.45408]
[1761853861948,0.1753094,106970.0,106960.0,0.45408]
[1761853862146,0.7359894,106970.0,106960.0,0.45808]
[1761853862348,1.0967894,106970.0,106960.0,0.004]
[1761853862545,1.1095894,106970.0,106960.0,0.012]
[1761853862841,1.1095894,106970.0,106920.0,0.4433]
[1761853862842,0.01268,106930.0,106920.0,0.4433]
[1761853863042,0.38682,106930.0,106920.0,0.0825]
[1761853863244,0.38682,106930.0,106920.0,0.4433]
[1761853863433,0.35068,106930.0,106920.0,1.9433]
[1761853863634,0.04692,106950.0,106940.0,0.09328]
[1761853863845,0.34,106950.0,106940.0,0.45408]
[1761853864039,1.09350735,106950.0,106930.0,0.3608]
[1761853864238,0.04692,106940.0,106930.0,0.39795]
[1761853864442,0.02346,106920.0,106910.0,0.39795]
[1761853864646,0.6443,106920.0,106910.0,0.43289]
[1761853865442,0.65276,106920.0,106910.0,0.43289]
[1761853865750,0.7537094,106920.0,106910.0,0.44689]
[1761853865942,0.75496928,106920.0,106910.0,0.44989]
[1761853867050,0.75538928,106920.0,106910.0,0.44989]
[1761853867453,0.75438928,106920.0,106910.0,0.43289]
[1761853867754,0.60751988,106920.0,106910.0,0.80055681]
[1761853867945,0.00167988,106920.0,106910.0,0.80055681]
[1761853868149,0.37594735,106950.0,106920.0,0.02119]
[1761853868344,0.73848,106940.0,106930.0,0.07209]
[1761853868542,1.04848,106940.0,106930.0,0.07209]
[1761853868747,1.04848,106940.0,106930.0,0.03494]
[1761853868945,0.04692,106930.0,106920.0,0.09328]
[1761853869152,0.35692,106930.0,106920.0,0.09328]
[1761853869749,0.31,106930.0,106920.0,0.45408]
[1761853870053,0.4568694,106930.0,106920.0,0.09328]
[1761853870245,0.04692,106920.0,106910.0,0.002]
[1761853870445,0.04692,106910.0,106900.0,0.38199]
[1761853870650,0.71792,106910.0,106900.0,0.45408]
[1761853871155,0.66792,106910.0,106900.0,0.45408]
[1761853871455,0.56792,106910.0,106900.0,0.45408]